fUSD/lending_fUSD_20250221
["ID","MTS","AMOUNT","RATE_DAILY","PERIOD"]
[353976252,1740172238262,-504.99,0.00010958,2]
[353976253,1740172238271,-150.0,0.00010959,2]
[353976254,1740172238280,-150.0,0.00010971,2]
[353976255,1740172238290,-150.0,0.0001098,2]
[353976256,1740172238299,-1116.0,0.00011,2]
[353976257,1740172238308,-343.68703826,0.00011,2]
[353976258,1740172238319,-156.31296174,0.00011,2]
[353976259,1740172238329,-500.0,0.00011037,2]
[353976260,1740172238338,-649.82,0.00011037,2]
[353976262,1740172238347,-622.03,0.00011037,2]
[353976264,1740172238356,-1075.7,0.00011037,2]
[353976266,1740172238365,-855.71,0.00011037,2]
[353976268,1740172238374,-1013.9,0.00011037,2]
[353976270,1740172238383,-1231.28,0.00011037,2]
[353976272,1740172238393,-769.3,0.00011037,2]
[353976274,1740172238405,-500.0,0.00011037,2]
[353976276,1740172238414,-916.53,0.00011037,2]
[353976278,1740172238422,-1480.7,0.00011037,2]
[353976280,1740172238431,-1452.9,0.00011037,2]
[353976281,1740172238441,-1092.95,0.00011037,2]
[353976284,1740172238450,-500.0,0.00011037,2]
[353976287,1740172238459,-761.8,0.00011037,2]
[353976289,1740172238468,-931.16,0.00011037,2]
[353976291,1740172238480,-500.0,0.00011037,2]
[353976293,1740172238489,-1001.35,0.00011037,2]
[353976295,1740172238498,-2093.79,0.00011037,2]
[353976297,1740172238507,-591.75,0.00011037,2]
[353976299,1740172238516,-757.37,0.00011037,2]
[353976301,1740172238525,-500.0,0.00011037,2]
[353976303,1740172238533,-1067.6,0.00011037,2]
[353976305,1740172238542,-500.0,0.00011037,2]
[353976307,1740172238551,-500.0,0.00011037,2]
[353976309,1740172238560,-500.0,0.00011037,2]
[353976311,1740172238569,-500.0,0.00011037,2]
[353976313,1740172238579,-500.0,0.00011037,2]
[353976315,1740172238588,-1427.11,0.00011037,2]
[353976317,1740172238596,-782.56,0.00011037,2]
[353976319,1740172238605,-969.96,0.00011037,2]
[353976321,1740172238614,-500.0,0.00011037,2]
[353976323,1740172238623,-842.52,0.00011037,2]
[353976325,1740172238632,-155.989735,0.00011037,2]
[353976327,1740172238641,-830.72,0.00011037,2]
[353976329,1740172238649,-663.66,0.00011037,2]
[353976330,1740172238659,-500.0,0.00011037,2]
[353976332,1740172238669,-225.85,0.00011038,2]
[353976334,1740172238678,-538.49,0.00011038,2]
[353976336,1740172238688,-500.0,0.00011038,2]
[353976338,1740172238697,-500.0,0.00011038,2]
[353976340,1740172238707,-691.94,0.00011038,2]
[353976342,1740172238716,-500.0,0.00011038,2]
[353976344,1740172238725,-500.0,0.00011038,2]
[353976346,1740172238734,-644.17,0.00011038,2]
[353976348,1740172238743,-500.0,0.00011038,2]
[353976350,1740172238752,-500.0,0.00011038,2]
[353976352,1740172238763,-667.56,0.00011038,2]
[353976354,1740172238773,-500.0,0.00011038,2]
[353976356,1740172238782,-756.41,0.00011038,2]
[353976358,1740172238791,-534.96766498,0.00011038,2]
[353976360,1740172238800,-500.0,0.00011038,2]
[353976362,1740172238809,-651.32,0.00011038,2]
[353976364,1740172238818,-500.0,0.00011038,2]
[353976366,1740172238827,-500.0,0.00011038,2]
[353976368,1740172238836,-500.0,0.00011038,2]
[353976370,1740172238846,-500.0,0.00011038,2]
[353976372,1740172238857,-500.0,0.00011038,2]
[353976374,1740172238867,-500.0,0.00011038,2]
[353976376,1740172238876,-552.92,0.00011038,2]
[353976378,1740172238885,-664.1,0.00011038,2]
[353976380,1740172238894,-500.0,0.00011038,2]
[353976382,1740172238903,-500.0,0.00011038,2]
[353976384,1740172238913,-500.0,0.00011038,2]
[353976386,1740172238922,-500.0,0.00011038,2]
[353976388,1740172238931,-641.81,0.00011038,2]
[353976390,1740172238940,-500.0,0.00011038,2]
[353976392,1740172238949,-500.0,0.00011038,2]
[353976394,1740172238960,-500.0,0.00011038,2]
[353976396,1740172238969,-500.0,0.00011038,2]
[353976398,1740172238978,-500.0,0.00011038,2]
[353976400,1740172238987,-529.44,0.00011038,2]
[353976402,1740172238996,-500.0,0.00011038,2]
[353976404,1740172239005,-500.0,0.00011038,2]
[353976406,1740172239014,-500.0,0.00011038,2]
[353976408,1740172239023,-500.0,0.00011038,2]
[353976410,1740172239032,-500.0,0.00011038,2]
[353976412,1740172239042,-228.67692117,0.00011038,2]
[353976414,1740172239051,-580.98,0.00011038,2]
[353976415,1740172239060,-500.0,0.00011038,2]
[353976418,1740172239070,-161.98165293,0.00011038,2]
[353976420,1740172239079,-500.0,0.00011038,2]
[353976421,1740172239088,-500.0,0.00011038,2]
[353976423,1740172239098,-656.48,0.00011038,2]
[353976425,1740172239107,-500.0,0.00011038,2]
[353976427,1740172239116,-284.31008699,0.00011038,2]
[353976429,1740172239125,-645.51,0.00011038,2]
[353976431,1740172239134,-500.0,0.00011038,2]
[353976433,1740172239143,-500.0,0.00011038,2]
[353976435,1740172239152,-500.0,0.00011038,2]
[353976437,1740172239161,-875.23,0.00011038,2]
[353976439,1740172239169,-819.32,0.00011038,2]
[353976441,1740172239179,-514.61,0.00011038,2]
[353976443,1740172239188,-681.73,0.00011038,2]
[353976445,1740172239197,-500.0,0.00011038,2]
[353976446,1740172239206,-500.0,0.00011038,2]
[353976448,1740172239215,-773.23,0.00011038,2]
[353976450,1740172239224,-500.0,0.00011038,2]
[353976451,1740172239233,-500.0,0.00011038,2]
[353976453,1740172239242,-500.0,0.00011038,2]
[353976455,1740172239251,-500.0,0.00011038,2]
[353976457,1740172239260,-500.0,0.00011038,2]
[353976459,1740172239269,-193.607216,0.00011038,2]
[353976460,1740172239278,-500.0,0.00011038,2]
[353976462,1740172239287,-760.5,0.00011038,2]
[353976464,1740172239297,-500.0,0.00011038,2]
[353976466,1740172239306,-500.0,0.00011038,2]
[353976468,1740172239315,-565.11,0.00011038,2]
[353976470,1740172239324,-281.23673,0.00011038,2]
[353976471,1740172239333,-500.0,0.00011038,2]
[353976473,1740172239342,-500.0,0.00011038,2]
[353976495,1740172239580,-573.49925655,0.00011038,2]
[353976497,1740172239589,-703.17,0.00011038,2]
[353976499,1740172239599,-500.0,0.00011038,2]
[353976501,1740172239608,-500.0,0.00011038,2]
[353976503,1740172239617,-709.63,0.00011038,2]
[353976504,1740172239626,-500.0,0.00011038,2]
[353976506,1740172239634,-562.69,0.00011038,2]
[353976508,1740172239644,-696.24,0.00011038,2]
[353976510,1740172239653,-500.0,0.00011038,2]
[353976512,1740172239661,-230.212478,0.00011038,2]
[353976514,1740172239671,-567.21,0.00011038,2]
[353976516,1740172239679,-500.0,0.00011038,2]
[353976518,1740172239688,-500.0,0.00011038,2]
[353976520,1740172239697,-694.16,0.00011038,2]
[353976521,1740172239707,-678.43,0.00011038,2]
[353976523,1740172239716,-500.0,0.00011038,2]
[353976525,1740172239726,-690.55,0.00011038,2]
[353976527,1740172239735,-500.0,0.00011038,2]
[353976529,1740172239745,-500.0,0.00011038,2]
[353976531,1740172239754,-500.0,0.00011038,2]
[353976533,1740172239763,-500.0,0.00011038,2]
[353976535,1740172239772,-663.28,0.00011038,2]
[353976536,1740172239781,-500.0,0.00011038,2]
[353976538,1740172239790,-996.53,0.00011038,2]
[353976540,1740172239799,-731.38,0.00011038,2]
[353976542,1740172239808,-500.0,0.00011038,2]
[353976544,1740172239817,-643.91,0.00011038,2]
[353976546,1740172239827,-500.0,0.00011038,2]
[353976548,1740172239835,-500.0,0.00011038,2]
[353976549,1740172239845,-500.0,0.00011038,2]
[353976551,1740172239855,-156.366219,0.00011038,2]
[353976553,1740172239865,-500.0,0.00011038,2]
[353976555,1740172239874,-228.43709297,0.00011038,2]
[353976557,1740172239883,-500.0,0.00011038,2]
[353976559,1740172239893,-500.0,0.00011038,2]
[353976560,1740172239902,-500.0,0.00011038,2]
[353976562,1740172239911,-731.06,0.00011038,2]
[353976564,1740172239920,-500.0,0.00011038,2]
[353976566,1740172239929,-500.0,0.00011038,2]
[353976568,1740172239938,-500.0,0.00011038,2]
[353976570,1740172239947,-500.0,0.00011038,2]
[353976571,1740172239957,-500.0,0.00011038,2]
[353976574,1740172239967,-500.0,0.00011038,2]
[353976577,1740172239976,-500.0,0.00011038,2]
[353976579,1740172239986,-500.0,0.00011038,2]
[353976581,1740172239995,-500.0,0.00011038,2]
[353976584,1740172240004,-500.0,0.00011038,2]
[353976587,1740172240013,-500.0,0.00011038,2]
[353976590,1740172240023,-500.0,0.00011038,2]
[353976593,1740172240031,-500.0,0.00011038,2]
[353976596,1740172240041,-710.81,0.00011038,2]
[353976599,1740172240050,-504.9715667,0.00011038,2]
[353976601,1740172240059,-500.6,0.00011038,2]
[353976604,1740172240068,-500.0,0.00011038,2]
[353976607,1740172240077,-503.06291679,0.00011038,2]
[353976610,1740172240087,-500.0,0.00011038,2]
[353976613,1740172240097,-500.0,0.00011038,2]
[353976616,1740172240105,-500.0,0.00011038,2]
[353976618,1740172240115,-624.32,0.00011038,2]
[353976621,1740172240124,-500.0,0.00011038,2]
[353976626,1740172240133,-500.0,0.00011038,2]
[353976631,1740172240142,-500.0,0.00011038,2]
[353976635,1740172240151,-500.0,0.00011038,2]
[353976637,1740172240161,-500.0,0.00011038,2]
[353976641,1740172240170,-500.0,0.00011038,2]
[353976644,1740172240179,-595.44,0.00011038,2]
[353976646,1740172240188,-500.0,0.00011038,2]
[353976648,1740172240197,-500.0,0.00011038,2]
[353976650,1740172240206,-500.66772413,0.00011038,2]
[353976652,1740172240215,-751.36,0.00011038,2]
[353976654,1740172240224,-636.57,0.00011038,2]
[353976656,1740172240233,-500.0,0.00011038,2]
[353976658,1740172240242,-500.0,0.00011038,2]
[353976659,1740172240251,-174.831552,0.00011038,2]
[353976661,1740172240259,-523.67620465,0.00011038,2]
[353976663,1740172240268,-500.0,0.00011038,2]
[353976665,1740172240278,-500.0,0.00011038,2]
[353976667,1740172240287,-893.82,0.00011038,2]
[353976669,1740172240296,-503.02623197,0.00011038,2]
[353976671,1740172240305,-500.0,0.00011038,2]
[353976673,1740172240314,-500.0,0.00011038,2]
[353976675,1740172240323,-500.0,0.00011038,2]
[353976677,1740172240332,-500.0,0.00011038,2]
[353976679,1740172240341,-500.0,0.00011038,2]
[353976680,1740172240350,-500.0,0.00011038,2]
[353976682,1740172240360,-500.0,0.00011038,2]
[353976684,1740172240370,-500.0,0.00011038,2]
[353976686,1740172240379,-500.0,0.00011038,2]
[353976688,1740172240388,-500.0,0.00011038,2]
[353976690,1740172240402,-500.0,0.00011038,2]
[353976692,1740172240411,-500.0,0.00011038,2]
[353976694,1740172240420,-500.0,0.00011038,2]
[353976696,1740172240429,-500.0,0.00011038,2]
[353976697,1740172240439,-587.07,0.00011038,2]
[353976699,1740172240449,-514.81976482,0.00011038,2]
[353976701,1740172240458,-500.0,0.00011038,2]
[353976703,1740172240467,-500.0,0.00011038,2]
[353976705,1740172240476,-1704.14,0.00011038,2]
[353976707,1740172240486,-500.0,0.00011038,2]
[353976708,1740172240496,-642.04169545,0.00011038,2]
[353976710,1740172240505,-500.0,0.00011038,2]
[353976712,1740172240513,-523.06,0.00011038,2]
[353976714,1740172240522,-500.0,0.00011038,2]
[353976716,1740172240531,-500.0,0.00011038,2]
[353976718,1740172240540,-500.0,0.00011038,2]
[353976720,1740172240549,-500.0,0.00011038,2]
[353976722,1740172240558,-500.0,0.00011038,2]
[353976723,1740172240567,-1140.49,0.00011038,2]
[353976725,1740172240576,-537.91712387,0.00011038,2]
[353976727,1740172240585,-500.0,0.00011038,2]
[353976729,1740172240594,-500.0,0.00011038,2]
[353976730,1740172240604,-500.0,0.00011038,2]
[353976731,1740172240613,-1885.94,0.00011038,2]
[353976732,1740172240621,-762.29,0.00011038,2]
[353976733,1740172240630,-1329.74,0.00011038,2]
[353976734,1740172240639,-500.0,0.00011038,2]
[353976735,1740172240649,-1050.0,0.00011038,2]
[353976736,1740172240658,-841.39,0.00011038,2]
[353976737,1740172240668,-500.0,0.00011038,2]
[353976738,1740172240677,-230.212479,0.00011038,2]
[353976739,1740172240686,-500.0,0.00011038,2]
[353976740,1740172240695,-500.0,0.00011038,2]
[353976741,1740172240704,-500.0,0.00011038,2]
[353976742,1740172240714,-1478.11,0.00011038,2]
[353976743,1740172240723,-1687.94,0.00011038,2]
[353976744,1740172240732,-500.0,0.00011038,2]
[353976745,1740172240741,-500.0,0.00011038,2]
[353976746,1740172240751,-500.0,0.00011038,2]
[353976747,1740172240760,-500.0,0.00011038,2]
[353976749,1740172240769,-500.0,0.00011038,2]
[353976752,1740172240778,-527.93,0.00011038,2]
[353976754,1740172240787,-500.0,0.00011038,2]
[353976756,1740172240796,-500.0,0.00011038,2]
[353976758,1740172240805,-500.0,0.00011038,2]
[353976761,1740172240814,-500.0,0.00011038,2]
[353976762,1740172240823,-1031.57,0.00011038,2]
[353976764,1740172240833,-836.59,0.00011038,2]
[353976765,1740172240842,-1035.44,0.00011038,2]
[353976766,1740172240852,-1245.12,0.00011038,2]
[353976767,1740172240862,-500.0,0.00011038,2]
[353976768,1740172240871,-500.0,0.00011038,2]
[353976769,1740172240880,-500.0,0.00011038,2]
[353976770,1740172240889,-1068.45,0.00011038,2]
[353976771,1740172240898,-1183.89,0.00011038,2]
[353976772,1740172240907,-500.0,0.00011038,2]
[353976773,1740172240916,-500.0,0.00011038,2]
[353976774,1740172240925,-1056.87,0.00011038,2]
[353976775,1740172240934,-500.0,0.00011038,2]
[353976776,1740172240943,-500.0,0.00011038,2]
[353976777,1740172240952,-5637.87,0.00011038,2]
[353976778,1740172240962,-797.09,0.00011038,2]
[353976779,1740172240971,-1352.53,0.00011038,2]
[353976780,1740172240980,-739.7,0.00011038,2]
[353976781,1740172240990,-500.0,0.00011038,2]
[353976782,1740172240999,-504.52476255,0.00011038,2]
[353976783,1740172241007,-500.0,0.00011038,2]
[353976784,1740172241016,-180.66616947,0.00011038,2]
[353976785,1740172241026,-500.0,0.00011038,2]
[353976786,1740172241035,-1479.65,0.00011038,2]
[353976787,1740172241044,-500.0,0.00011038,2]
[353976788,1740172241053,-508.60816115,0.00011038,2]
[353976789,1740172241063,-500.0,0.00011038,2]
[353976790,1740172241072,-500.0,0.00011038,2]
[353976791,1740172241081,-896.66,0.00011038,2]
[353976792,1740172241090,-500.0,0.00011038,2]
[353976793,1740172241099,-1219.06,0.00011038,2]
[353976794,1740172241108,-500.0,0.00011038,2]
[353976795,1740172241117,-500.0,0.00011038,2]
[353976796,1740172241127,-500.0,0.00011038,2]
[353976797,1740172241137,-500.0,0.00011038,2]
[353976798,1740172241147,-500.0,0.00011038,2]
[353976799,1740172241157,-1253.82,0.00011038,2]
[353976800,1740172241168,-500.0,0.00011038,2]
[353976801,1740172241178,-500.0,0.00011038,2]
[353976802,1740172241187,-500.0,0.00011038,2]
[353976803,1740172241196,-1134.86,0.00011038,2]
[353976804,1740172241206,-500.0,0.00011038,2]
[353976805,1740172241215,-500.0,0.00011038,2]
[353976806,1740172241224,-1523.22,0.00011038,2]
[353976807,1740172241233,-500.0,0.00011038,2]
[353976808,1740172241242,-500.0,0.00011038,2]
[353976809,1740172241251,-500.0,0.00011038,2]
[353976810,1740172241260,-500.0,0.00011038,2]
[353976811,1740172241269,-500.0,0.00011038,2]
[353976812,1740172241278,-1190.42,0.00011038,2]
[353976813,1740172241287,-942.8,0.00011038,2]
[353976814,1740172241296,-505.19088532,0.00011038,2]
[353976815,1740172241305,-500.0,0.00011038,2]
[353976816,1740172241315,-500.0,0.00011038,2]
[353976817,1740172241323,-500.0,0.00011038,2]
[353976818,1740172241332,-500.0,0.00011038,2]
[353976819,1740172241341,-500.0,0.00011038,2]
[353976820,1740172241350,-579.37,0.00011038,2]
[353976821,1740172241360,-503.64563473,0.00011038,2]
[353976822,1740172241369,-1258.98,0.00011038,2]
[353976823,1740172241378,-1291.85,0.00011038,2]
[353976824,1740172241388,-500.0,0.00011038,2]
[353976825,1740172241400,-500.0,0.00011038,2]
[353976826,1740172241411,-1149.69,0.00011038,2]
[353976827,1740172241421,-500.0,0.00011038,2]
[353976828,1740172241430,-500.0,0.00011038,2]
[353976829,1740172241439,-500.0,0.00011038,2]
[353976830,1740172241450,-500.0,0.00011038,2]
[353976831,1740172241460,-2660.4,0.00011038,2]
[353976832,1740172241469,-500.0,0.00011038,2]
[353976833,1740172241479,-500.0,0.00011038,2]
[353976834,1740172241488,-500.0,0.00011038,2]
[353976835,1740172241497,-614.9,0.00011038,2]
[353976836,1740172241507,-504.18718648,0.00011038,2]
[353976837,1740172241516,-1151.83,0.00011038,2]
[353976838,1740172241525,-500.0,0.00011038,2]
[353976839,1740172241534,-500.0,0.00011038,2]
[353976840,1740172241544,-811.74,0.00011038,2]
[353976841,1740172241553,-500.0,0.00011038,2]
[353976842,1740172241562,-500.0,0.00011038,2]
[353976843,1740172241571,-1450.82,0.00011038,2]
[353976844,1740172241581,-500.0,0.00011038,2]
[353976845,1740172241591,-500.0,0.00011038,2]
[353976846,1740172241600,-1170.09,0.00011038,2]
[353976847,1740172241610,-500.0,0.00011038,2]
[353976848,1740172241619,-500.0,0.00011038,2]
[353976849,1740172241628,-500.0,0.00011038,2]
[353976850,1740172241637,-500.0,0.00011038,2]
[353976851,1740172241647,-500.0,0.00011038,2]
[353976852,1740172241656,-500.0,0.00011038,2]
[353976853,1740172241665,-897.28,0.00011038,2]
[353976854,1740172241675,-1737.05,0.00011038,2]
[353976855,1740172241684,-500.0,0.00011038,2]
[353976856,1740172241694,-853.87,0.00011038,2]
[353976857,1740172241703,-500.0,0.00011038,2]
[353976858,1740172241713,-500.0,0.00011038,2]
[353976859,1740172241723,-638.91,0.00011038,2]
[353976860,1740172241731,-511.08,0.00011038,2]
[353976861,1740172241740,-500.0,0.00011038,2]
[353976862,1740172241750,-500.0,0.00011038,2]
[353976863,1740172241759,-500.0,0.00011038,2]
[353976864,1740172241768,-170.990078,0.00011038,2]
[353976865,1740172241778,-1229.62,0.00011038,2]
[353976866,1740172241787,-580.46,0.00011038,2]
[353976867,1740172241796,-500.0,0.00011038,2]
[353976868,1740172241805,-1513.79,0.00011038,2]
[353976869,1740172241815,-1136.08,0.00011038,2]
[353976870,1740172241824,-156.741372,0.00011038,2]
[353976871,1740172241834,-794.55,0.00011038,2]
[353976872,1740172241843,-500.0,0.00011038,2]
[353976873,1740172241853,-1175.93,0.00011038,2]
[353976874,1740172241862,-500.0,0.00011038,2]
[353976875,1740172241872,-500.0,0.00011038,2]
[353976876,1740172241881,-987.72,0.00011038,2]
[353976877,1740172241890,-731.97,0.00011038,2]
[353976878,1740172241900,-500.0,0.00011038,2]
[353976879,1740172241910,-500.0,0.00011038,2]
[353976880,1740172241919,-500.0,0.00011038,2]
[353976881,1740172241928,-500.0,0.00011038,2]
[353976882,1740172241937,-1199.69,0.00011038,2]
[353976883,1740172241946,-1172.47,0.00011038,2]
[353976884,1740172241958,-500.0,0.00011038,2]
[353976885,1740172241967,-2284.05,0.00011038,2]
[353976886,1740172241978,-500.0,0.00011038,2]
[353976887,1740172241987,-500.0,0.00011038,2]
[353976888,1740172241996,-5314.28,0.00011038,2]
[353976889,1740172242006,-183.62,0.00011038,2]
[353976890,1740172242015,-219.04,0.00011038,2]
[353976891,1740172242024,-1158.45,0.00011038,2]
[353976892,1740172242034,-500.0,0.00011038,2]
[353976893,1740172242043,-588.49,0.00011038,2]
[353976894,1740172242052,-500.0,0.00011038,2]
[353976895,1740172242061,-500.0,0.00011038,2]
[353976896,1740172242070,-500.0,0.00011038,2]
[353976897,1740172242079,-500.0,0.00011038,2]
[353976898,1740172242088,-1637.66,0.00011038,2]
[353976899,1740172242097,-1092.4,0.00011038,2]
[353976900,1740172242106,-500.0,0.00011038,2]
[353976901,1740172242115,-170.990071,0.00011038,2]
[353976902,1740172242123,-509.85459837,0.00011038,2]
[353976903,1740172242132,-1130.79,0.00011038,2]
[353976904,1740172242141,-417.54,0.00011038,2]
[353976905,1740172242152,-500.0,0.00011038,2]
[353976906,1740172242160,-589.95,0.00011038,2]
[353976907,1740172242170,-210.54,0.00011038,2]
[353976908,1740172242179,-500.0,0.00011038,2]
[353976909,1740172242188,-961.8,0.00011038,2]
[353976910,1740172242197,-171.24,0.00011038,2]
[353976911,1740172242205,-500.0,0.00011038,2]
[353976912,1740172242215,-257.06061416,0.00011038,2]
[353976913,1740172242224,-839.71,0.00011038,2]
[353976914,1740172242232,-500.50916,0.00011038,2]
[353976915,1740172242241,-580.81,0.00011038,2]
[353976916,1740172242250,-500.0,0.00011038,2]
[353976917,1740172242259,-500.0,0.00011038,2]
[353976918,1740172242268,-500.0,0.00011038,2]
[353976919,1740172242278,-597.77,0.00011038,2]
[353976920,1740172242287,-863.56,0.00011038,2]
[353976921,1740172242297,-500.0,0.00011038,2]
[353976922,1740172242307,-2270.11,0.00011038,2]
[353976923,1740172242316,-500.0,0.00011038,2]
[353976924,1740172242327,-2553.24,0.00011038,2]
[353976925,1740172242336,-500.0,0.00011038,2]
[353976926,1740172242345,-500.0,0.00011038,2]
[353976927,1740172242354,-500.0,0.00011038,2]
[353976928,1740172242363,-1389.81,0.00011038,2]
[353976929,1740172242372,-500.0,0.00011038,2]
[353976930,1740172242381,-336.11079003,0.00011038,2]
[353976931,1740172242391,-83942.86336509,0.00011039,2]
[353976932,1740172242403,-500.0,0.00011039,2]
[353976933,1740172242412,-519.67,0.00011039,2]
[353976934,1740172242421,-500.0,0.00011039,2]
[353976935,1740172242430,-500.0,0.00011039,2]
[353976936,1740172242439,-500.0,0.00011039,2]
[353976937,1740172242448,-304.82,0.00011039,2]
[353976938,1740172242457,-500.0,0.00011039,2]
[353976939,1740172242467,-500.0,0.00011039,2]
[353976940,1740172242476,-500.0,0.00011039,2]
[353976941,1740172242486,-508.42776441,0.00011039,2]
[353976942,1740172242495,-500.0,0.00011039,2]
[353976943,1740172242504,-643.25951411,0.00011039,2]
[353976944,1740172242513,-274.42,0.00011039,2]
[353976945,1740172242522,-208.54205116,0.00011039,2]
[353976946,1740172242530,-317.32373261,0.00011039,2]
[353976947,1740172242539,-502.64462557,0.00011039,2]
[353976948,1740172242548,-500.0,0.00011039,2]
[353976949,1740172242558,-500.0,0.00011039,2]
[353976950,1740172242567,-500.0,0.00011039,2]
[353976951,1740172242576,-500.0,0.00011039,2]
[353976952,1740172242586,-500.0,0.00011039,2]
[353976953,1740172242595,-500.0,0.00011039,2]
[353976954,1740172242604,-500.0,0.00011039,2]
[353976955,1740172242613,-500.0,0.00011039,2]
[353976956,1740172242622,-500.0,0.00011039,2]
[353976957,1740172242631,-500.0,0.00011039,2]
[353976958,1740172242640,-500.0,0.00011039,2]
[353976959,1740172242649,-500.0,0.00011039,2]
[353976960,1740172242658,-500.0,0.00011039,2]
[353976961,1740172242667,-500.0,0.00011039,2]
[353976962,1740172242676,-500.0,0.00011039,2]
[353976963,1740172242685,-500.0,0.00011039,2]
[353976964,1740172242694,-500.0,0.00011039,2]
[353976965,1740172242703,-500.0,0.00011039,2]
[353976966,1740172242712,-500.0,0.00011039,2]
[353976967,1740172242721,-542.07788929,0.00011039,2]
[353976968,1740172242730,-253.42336916,0.00011039,2]
[353976969,1740172242739,-500.0,0.00011039,2]
[353976970,1740172242748,-500.0,0.00011039,2]
[353976971,1740172242757,-500.0,0.00011039,2]
[353976972,1740172242766,-500.0,0.00011039,2]
[353976973,1740172242775,-500.0,0.00011039,2]
[353976974,1740172242785,-500.0,0.00011039,2]
[353976975,1740172242794,-500.0,0.00011039,2]
[353976976,1740172242804,-500.0,0.00011039,2]
[353976977,1740172242813,-500.0,0.00011039,2]
[353976978,1740172242822,-500.0,0.00011039,2]
[353976979,1740172242831,-500.0,0.00011039,2]
[353976980,1740172242840,-501.00961371,0.0001104,2]
[353976981,1740172242850,-67.62704053,0.0001104,2]
[353977001,1740172243142,-432.37295947,0.0001104,2]
[353977003,1740172243151,-501.98112171,0.0001104,2]
[353977005,1740172243161,-502.86365523,0.0001104,2]
[353977006,1740172243175,-500.0,0.0001104,2]
[353977010,1740172243399,-514.41606088,0.0001104,2]
[353977011,1740172243411,-500.0,0.0001104,2]
[353977012,1740172243420,-491.40843339,0.0001104,2]
[353977013,1740172243430,-504.31977074,0.0001104,2]
[353977014,1740172243439,-500.0,0.0001104,2]
[353977015,1740172243448,-300.0,0.0001104,2]
[353977016,1740172243457,-508.54770513,0.0001104,2]
[353977017,1740172243468,-500.0,0.0001104,2]
[353977018,1740172243478,-500.0,0.0001104,2]
[353977019,1740172243487,-500.0,0.0001104,2]
[353977020,1740172243495,-500.0,0.0001104,2]
[353977021,1740172243504,-500.0,0.0001104,2]
[353977022,1740172243514,-500.0,0.0001104,2]
[353977023,1740172243525,-500.0,0.0001104,2]
[353977024,1740172243534,-500.0,0.0001104,2]
[353977026,1740172243543,-500.0,0.0001104,2]
[353977027,1740172243553,-500.0,0.0001104,2]
[353977028,1740172243562,-500.91592595,0.0001104,2]
[353977029,1740172243571,-250.20842939,0.0001104,2]
[353977030,1740172243580,-500.0,0.0001104,2]
[353977031,1740172243589,-500.0,0.0001104,2]
[353977032,1740172243598,-500.0,0.0001104,2]
[353977034,1740172243607,-500.0,0.0001104,2]
[353977036,1740172243616,-500.0,0.0001104,2]